bitfinex/quotes_BTCUSD_20260215
["timestamp","ask_amount","ask_price","bid_price","bid_amount"]
[1771160739451,4e-05,69456.0,69449.0,0.07199504]
[1771160739695,4e-05,69456.0,69448.0,0.07199591]
[1771160739901,0.02283948,69455.0,69444.0,4e-05]
[1771160740107,0.07199198,69453.0,69444.0,0.07203963]
[1771160740283,0.08717372,69452.0,69444.0,0.07203963]
[1771160740480,0.07564643,69451.0,69444.0,4e-05]
[1771160740661,0.05403042,69451.0,69444.0,4e-05]
[1771160740865,0.05403042,69451.0,69439.0,0.28801956]
[1771160740866,0.05403042,69447.0,69434.0,0.28804135]
[1771160741063,0.12602866,69447.0,69440.0,0.00020964]
[1771160741742,0.05403042,69446.0,69442.0,0.0002]
[1771160742117,0.28118959,69446.0,69442.0,0.0002]
[1771160742418,0.28118959,69450.0,69442.0,0.0002]
[1771160742645,0.025,69445.0,69440.0,0.00020964]
[1771160742847,0.28800186,69444.0,69438.0,2.25e-05]
[1771160743060,0.37819523,69439.0,69438.0,2.25e-05]
[1771160743385,0.025,69439.0,69438.0,2.25e-05]
[1771160743791,0.37470118,69439.0,69438.0,2.25e-05]
[1771160743965,0.09701288,69433.0,69425.0,0.03013968]
[1771160744172,0.05403042,69432.0,69426.0,0.07201893]
[1771160744376,0.05403042,69432.0,69424.0,0.07202017]
[1771160744572,0.12604423,69432.0,69424.0,0.07202017]
[1771160745154,0.12604466,69431.0,69422.0,0.07202292]
[1771160745367,0.12604466,69431.0,69421.0,0.07202376]
[1771160745368,0.12604536,69431.0,69423.0,0.07202191]
[1771160745566,0.05403042,69431.0,69425.0,0.07201975]
[1771160745847,0.03274816,69461.0,69433.0,0.07201084]
[1771160745848,0.07200149,69443.0,69433.0,0.07201084]
[1771160746043,0.07200392,69441.0,69433.0,0.07201084]
[1771160746375,0.0720029,69442.0,69434.0,0.07201026]
[1771160746750,0.0720029,69442.0,69435.0,0.07200979]
[1771160746956,0.05403042,69445.0,69429.0,0.00143811]
[1771160747152,0.05403042,69445.0,69438.0,0.07200598]
[1771160747522,0.05403042,69445.0,69428.0,0.28168205]
[1771160747523,0.07199718,69448.0,69440.0,0.07200448]
[1771160747881,0.07199688,69448.0,69440.0,0.07200448]
[1771160748079,0.07199757,69447.0,69440.0,0.07200448]
[1771160748216,8e-05,69450.0,69439.0,0.07200556]
[1771160748217,0.07199872,69446.0,69439.0,0.07200556]
[1771160748622,0.07199761,69447.0,69439.0,0.07200556]
[1771160748817,0.07199761,69447.0,69438.0,0.07200599]
[1771160748818,0.28805865,69450.0,69438.0,0.07200599]
[1771160749053,0.07199915,69446.0,69438.0,0.07200599]
[1771160749294,0.07199946,69445.0,69438.0,0.07200599]
[1771160749842,0.0720011,69444.0,69437.0,0.07200771]
[1771160750096,0.07199968,69445.0,69438.0,0.07200642]
[1771160750645,0.07199915,69446.0,69439.0,0.07200526]
[1771160750867,0.27769554,69448.0,69437.0,0.00012962]
[1771160751190,0.09700022,69445.0,69437.0,0.07213708]
[1771160751754,0.025,69445.0,69437.0,0.28815913]
[1771160751925,0.07199711,69448.0,69440.0,0.0002]
[1771160752136,0.025,69447.0,69440.0,0.07220264]
[1771160752474,0.025,69447.0,69441.0,0.07200318]
[1771160752674,0.56610654,69452.0,69440.0,0.07220264]
[1771160752675,0.02705521,69456.0,69440.0,0.0002]
[1771160752942,4e-05,69456.0,69450.0,0.07199352]
[1771160753158,4e-05,69456.0,69445.0,0.28168205]
[1771160753371,4e-05,69456.0,69451.0,0.0717125]
[1771160753531,4e-05,69456.0,69450.0,0.07199404]
[1771160754195,4e-05,69456.0,69449.0,0.0719949]
[1771160754394,4e-05,69456.0,69450.0,0.07199347]
[1771160754547,4e-05,69456.0,69449.0,0.0719949]
[1771160755858,0.07200036,69445.0,69442.0,4e-05]
[1771160756085,0.025,69453.0,69442.0,4e-05]
[1771160756290,0.27769554,69453.0,69442.0,4e-05]
[1771160756408,0.27769554,69452.0,69442.0,4e-05]
[1771160756643,0.09900921,69451.0,69442.0,4e-05]
[1771160756868,0.09900921,69451.0,69437.0,0.00012962]
[1771160756869,0.02701521,69449.0,69437.0,0.00012962]
[1771160757079,0.09901254,69448.0,69439.0,0.07200522]
[1771160757501,4e-05,69452.0,69448.0,0.07199623]
[1771160757719,4e-05,69456.0,69447.0,0.07199536]
[1771160757960,4e-05,69456.0,69446.0,0.3536794]
[1771160758183,4e-05,69456.0,69447.0,0.28798704]
[1771160758406,8e-05,69460.0,69459.0,0.07198491]
[1771160759902,0.0001521,69465.0,69452.0,0.56964868]
[1771160759903,0.0001521,69465.0,69463.0,0.07198076]
[1771160760308,0.07213158,69465.0,69457.0,0.07198672]
[1771160760538,0.0001521,69465.0,69452.0,4e-05]
[1771160760776,0.0001521,69465.0,69455.0,0.07198835]
[1771160760989,0.07198884,69456.0,69448.0,0.07199605]
[1771160761189,0.09900306,69457.0,69448.0,0.07199556]
[1771160761393,0.02701521,69457.0,69448.0,0.07199556]
[1771160761602,0.07199024,69454.0,69446.0,0.07199809]
[1771160761810,0.02701521,69457.0,69453.0,0.07199037]
[1771160762011,4e-05,69460.0,69455.0,0.07198881]
[1771160762210,4e-05,69460.0,69456.0,0.07198797]
[1771160762412,9.601e-05,69460.0,69456.0,0.07198797]
[1771160762670,9.601e-05,69460.0,69455.0,0.07198892]
[1771160762809,9.601e-05,69460.0,69455.0,0.07198889]
[1771160763047,0.02509601,69460.0,69450.0,0.07199348]
[1771160763245,0.09707996,69460.0,69444.0,0.07200046]
[1771160763451,0.09707996,69460.0,69424.0,0.89594383]
[1771160763452,0.27769554,69459.0,69440.0,0.07200413]
[1771160763664,0.07199311,69453.0,69444.0,0.07200017]
[1771160763869,0.07199216,69452.0,69444.0,0.07200017]
[1771160764389,0.07199216,69452.0,69443.0,0.07200113]
[1771160764914,0.07199377,69451.0,69442.0,0.07204212]
[1771160765134,0.07199216,69452.0,69443.0,0.07200102]
[1771160765359,0.07199311,69453.0,69443.0,0.07200116]
[1771160765563,0.0719941,69451.0,69444.0,0.07200009]
[1771160765710,0.07199389,69451.0,69443.0,0.07200059]
[1771160765916,0.07199407,69451.0,69444.0,0.07200042]
[1771160766122,0.07199407,69451.0,69443.0,0.07200127]
[1771160766328,0.025,69454.0,69437.0,0.28168205]
[1771160766490,0.071998,69447.0,69438.0,0.07200597]
[1771160766713,0.071998,69447.0,69440.0,0.07200433]
[1771160766910,0.071998,69447.0,69429.0,0.28168205]
[1771160766911,0.025,69437.0,69426.0,0.0002]
[1771160767215,0.09700945,69436.0,69428.0,0.07201668]
[1771160767461,0.025,69436.0,69429.0,0.07201504]
[1771160767696,0.025,69436.0,69430.0,0.07221459]
[1771160768173,0.02505598,69436.0,69430.0,0.07221459]
[1771160768403,5.598e-05,69436.0,69426.0,0.0002]
[1771160768650,5.598e-05,69436.0,69316.0,0.2483]
[1771160768651,0.02701521,69428.0,69405.0,0.28168205]
[1771160768881,0.02701521,69428.0,69395.0,0.41143502]
[1771160768882,0.02701521,69424.0,69417.0,0.07202844]
[1771160769142,0.09903672,69424.0,69417.0,0.07202844]
[1771160769585,0.07201757,69428.0,69412.0,0.0002]
[1771160769788,0.07201705,69428.0,69420.0,0.07202525]
[1771160770410,0.09701703,69429.0,69421.0,0.07202417]
[1771160770613,0.07201292,69432.0,69425.0,0.07201951]
[1771160771019,0.07201182,69435.0,69418.0,0.07202742]
[1771160771224,0.00105598,69436.0,69419.0,0.28168205]
[1771160771430,0.00105598,69436.0,69412.0,0.0002]
[1771160771431,5.598e-05,69436.0,69431.0,0.07201325]
[1771160771638,5.598e-05,69436.0,69435.0,0.07200979]
[1771160772056,5.598e-05,69436.0,69433.0,0.07201183]
[1771160772271,5.598e-05,69436.0,69431.0,0.07201315]
[1771160772714,5.598e-05,69436.0,69432.0,0.07201195]
[1771160772852,0.07201078,69435.0,69406.0,0.0002]
[1771160773093,5.598e-05,69436.0,69406.0,0.0002]
[1771160773094,0.02707119,69436.0,69417.0,0.56979308]
[1771160773326,0.02707119,69436.0,69426.0,0.0720188]
[1771160773327,0.02701521,69434.0,69426.0,0.0720188]
[1771160773526,0.07201975,69426.0,69418.0,0.00143028]
[1771160773754,0.07201975,69426.0,69406.0,0.0002]
[1771160773755,0.0720209,69425.0,69417.0,0.0720278]
[1771160773924,0.07202882,69417.0,69410.0,0.07203568]
[1771160774123,0.07202731,69419.0,69411.0,0.07203442]
[1771160774519,0.025,69424.0,69413.0,0.07223242]
[1771160774909,0.07202542,69420.0,69413.0,0.0002]
[1771160775177,0.07202542,69420.0,69405.0,0.2766388]
[1771160775178,0.025,69409.0,69392.0,0.0003001]
[1771160775366,0.025,69409.0,69376.0,0.0003001]
[1771160775367,0.025,69409.0,69388.0,1e-08]
[1771160775368,0.07205753,69389.0,69388.0,1e-08]
[1771160775583,0.07206168,69385.0,69376.0,0.0003001]
[1771160775795,0.29154278,69383.0,69376.0,0.0003001]
[1771160775997,0.0127327,69390.0,69357.0,0.2768388]
[1771160775998,0.26656279,69377.0,69357.0,0.2768388]
[1771160776209,0.26656279,69377.0,69363.0,0.07208437]
[1771160776416,0.0127327,69390.0,69357.0,0.2768388]
[1771160776417,0.26656279,69379.0,69370.0,0.07207635]
[1771160776667,0.0720772,69371.0,69369.0,0.00043229]
[1771160776869,0.09906808,69375.0,69362.0,0.07208463]
[1771160777086,0.07206144,69386.0,69377.0,0.07206957]
[1771160777292,0.07206144,69386.0,69366.0,0.2766388]
[1771160777293,0.07206144,69386.0,69374.0,0.0720725]
[1771160777499,0.07206189,69385.0,69376.0,0.07207003]
[1771160777725,0.0990571,69385.0,69377.0,0.07206946]
[1771160777942,0.0127327,69384.0,69376.0,0.0720708]
[1771160778186,0.025,69383.0,69369.0,0.07207826]
[1771160778408,0.025,69382.0,69365.0,0.2766388]
[1771160778613,0.025,69382.0,69375.0,0.07207132]
[1771160778822,0.025,69382.0,69376.0,0.07207075]
[1771160779239,0.025,69382.0,69370.0,0.28830627]
[1771160779240,0.025,69382.0,69373.0,0.07207375]
[1771160779503,0.025,69382.0,69378.0,0.07206891]
[1771160779758,0.025,69386.0,69366.0,0.07208142]
[1771160779951,0.29156279,69386.0,69378.0,0.07206795]
[1771160780169,0.34297291,69406.0,69364.0,0.00032962]
[1771160780426,0.09544848,69403.0,69372.0,0.07207518]
[1771160780634,0.09544848,69403.0,69367.0,0.2766388]
[1771160780635,0.02340445,69401.0,69367.0,0.2766388]
[1771160780858,0.01991916,69400.0,69383.0,0.2766388]
[1771160781056,4e-05,69446.0,69366.0,0.34142498]
[1771160781057,1e-08,69412.0,69394.0,0.02100958]
[1771160781257,0.09224,69432.0,69405.0,0.2766388]
[1771160781258,0.02340445,69426.0,69405.0,0.2766388]
[1771160781456,0.02340445,69426.0,69417.0,0.07202755]
[1771160781591,0.09542455,69426.0,69417.0,0.07202755]
[1771160781944,0.09224,69432.0,69412.0,0.2766388]
[1771160782351,0.0004,69452.0,69419.0,0.02100958]
[1771160782352,0.07203865,69446.0,69419.0,0.02100958]
[1771160782562,4e-05,69446.0,69439.0,0.07200536]
[1771160782696,4e-05,69446.0,69430.0,0.07201497]
[1771160782906,0.0004,69452.0,69441.0,0.07200357]
[1771160782907,1e-08,69452.0,69441.0,0.07200357]
[1771160783108,1e-08,69452.0,69451.0,0.0719932]
[1771160783331,0.0004,69459.0,69440.0,0.2766788]
[1771160783332,0.0004,69459.0,69457.0,0.07198698]
[1771160783556,0.0004,69459.0,69455.0,0.0719887]
[1771160783900,0.0008754,69464.0,69451.0,0.2766388]
[1771160784101,0.0008754,69464.0,69460.0,0.07198384]
[1771160784321,0.0008754,69464.0,69457.0,0.07198607]
[1771160784530,0.0008754,69464.0,69461.0,0.07198283]
[1771160784746,0.07285605,69464.0,69450.0,8e-05]
[1771160784947,0.0004,69461.0,69450.0,0.2767188]
[1771160785105,0.0004,69461.0,69456.0,0.07198772]
[1771160785303,0.0004,69461.0,69457.0,0.07198675]
[1771160785507,0.0004,69461.0,69450.0,8e-05]
[1771160785508,0.07238315,69461.0,69450.0,8e-05]
[1771160785684,0.0719843,69460.0,69450.0,8e-05]
[1771160785919,0.0004,69461.0,69450.0,0.07207397]
[1771160786124,0.26656279,69459.0,69446.0,4e-05]
[1771160786322,0.07199006,69455.0,69446.0,4e-05]
[1771160786704,0.02344445,69458.0,69440.0,4e-05]
[1771160786705,0.26656279,69452.0,69440.0,4e-05]
[1771160786912,0.02340445,69454.0,69440.0,4e-05]
[1771160786913,0.09539541,69454.0,69445.0,0.07199942]
[1771160787152,0.07199116,69453.0,69445.0,0.07199942]
[1771160787357,4e-05,69456.0,69444.0,4e-05]
[1771160787578,4e-05,69456.0,69450.0,0.07199369]
[1771160787785,4e-05,69456.0,69451.0,0.07199301]
[1771160787991,4e-05,69456.0,69450.0,0.07199373]
[1771160788196,4e-05,69456.0,69444.0,4e-05]
[1771160788582,0.07198995,69455.0,69444.0,4e-05]
[1771160788783,0.07199051,69454.0,69446.0,0.07199825]
[1771160788984,4e-05,69456.0,69444.0,4e-05]
[1771160788985,0.07199605,69449.0,69444.0,4e-05]
[1771160789140,4e-05,69456.0,69450.0,0.07199378]
[1771160789347,0.02380445,69466.0,69448.0,4e-05]
[1771160789550,0.07206491,69460.0,69448.0,4e-05]
[1771160789750,0.28996724,69458.0,69448.0,4e-05]
[1771160789952,0.0004,69461.0,69459.0,0.07198491]
[1771160790328,1e-08,69468.0,69467.0,0.07197662]
[1771160790525,0.0001297,69468.0,69451.0,0.0719932]
[1771160790737,0.0001297,69468.0,69450.0,8e-05]
[1771160790961,0.0001297,69468.0,69463.0,0.07198002]
[1771160791142,0.0001297,69468.0,69462.0,0.07198158]
[1771160791361,0.0001297,69468.0,69461.0,0.0719809]
[1771160791564,0.0001297,69468.0,69462.0,0.0719818]
[1771160791801,0.0001297,69468.0,69460.0,0.07198379]
[1771160791976,0.07210616,69468.0,69451.0,0.2766388]
[1771160792385,0.0004,69467.0,69454.0,0.28795769]
[1771160792588,0.0004,69467.0,69451.0,0.28796866]
[1771160792801,0.0004,69467.0,69451.0,0.2766388]
[1771160792988,0.0004,69467.0,69461.0,0.07198192]
[1771160793200,0.0004,69467.0,69459.0,0.0719841]
[1771160793643,0.0004,69467.0,69460.0,0.07198303]
[1771160793869,0.0004,69467.0,69462.0,0.07198138]
[1771160794832,0.0004,69467.0,69461.0,0.07198274]
[1771160795430,0.0004,69467.0,69462.0,0.07198127]
[1771160796039,0.0004,69475.0,69447.0,0.2766388]
[1771160796243,0.0004,69475.0,69438.0,1.44011904]
[1771160796244,0.0004,69475.0,69463.0,0.28792268]
[1771160796475,0.26656279,69469.0,69452.0,0.07199216]
[1771160796691,0.02340445,69464.0,69449.0,0.07199445]
[1771160796901,0.02340445,69464.0,69440.0,0.28801556]
[1771160796902,0.00012969,69447.0,69434.0,0.2766388]
[1771160797128,0.02340445,69458.0,69446.0,0.07199822]
[1771160797347,0.07198924,69455.0,69435.0,0.2766388]
[1771160797572,0.07199,69455.0,69447.0,0.07199691]
[1771160797777,0.07198916,69455.0,69446.0,0.07199804]
[1771160797993,0.07198916,69455.0,69447.0,0.07199713]
[1771160798507,0.02340445,69458.0,69449.0,0.07199527]
[1771160798508,8e-05,69450.0,69449.0,0.07199527]
[1771160798718,8e-05,69450.0,69430.0,4e-05]
[1771160798719,8e-05,69450.0,69400.0,0.07204559]
[1771160798720,0.03234816,69438.0,69400.0,0.07204559]
[1771160798930,0.03234816,69438.0,69392.0,0.2766388]
[1771160798931,0.02340445,69412.0,69396.0,0.07204977]
[1771160799139,0.02340445,69412.0,69398.0,0.07252331]
[1771160799347,0.07203975,69407.0,69398.0,0.07252347]
[1771160799554,0.02340445,69412.0,69398.0,0.0004754]
[1771160799765,0.07203679,69409.0,69399.0,0.07204714]
[1771160799984,0.0334779,69409.0,69399.0,0.07204714]
[1771160800197,0.0334779,69409.0,69400.0,0.07204604]
[1771160800401,0.26656279,69418.0,69399.0,0.07247943]
[1771160800402,0.07203149,69415.0,69399.0,0.27707109]
[1771160800603,0.07203149,69415.0,69406.0,0.07203986]
[1771160800809,0.07203178,69414.0,69406.0,0.07203986]
[1771160801240,0.07203284,69413.0,69404.0,0.07204171]
[1771160801652,0.07203149,69415.0,69403.0,0.0002]
[1771160801653,0.07203149,69415.0,69405.0,0.0720409]
[1771160801878,0.02340445,69430.0,69404.0,0.2766388]
[1771160802346,0.02340445,69430.0,69403.0,0.0002]
[1771160802347,0.02340445,69430.0,69412.0,0.07203288]
[1771160802566,0.07202142,69424.0,69414.0,0.0720307]
[1771160802769,0.07201912,69426.0,69416.0,0.07202764]
[1771160802976,0.0720203,69425.0,69415.0,0.07203047]
[1771160803175,0.07202245,69423.0,69415.0,0.07203047]
[1771160803576,0.07202245,69423.0,69414.0,0.07203117]
[1771160803782,0.07202467,69421.0,69412.0,0.07203337]
[1771160803987,0.0922,69429.0,69410.0,0.2766388]
[1771160803988,0.07202338,69422.0,69414.0,0.07203061]
[1771160804192,0.07202232,69423.0,69415.0,0.07203005]
[1771160804395,0.07202201,69424.0,69415.0,0.07203005]
[1771160804604,0.28807492,69427.0,69415.0,0.0720303]
[1771160804847,4e-05,69470.0,69424.0,0.07202029]
[1771160804848,0.07201238,69433.0,69424.0,0.07202029]
[1771160805034,0.02371207,69446.0,69422.0,0.28928077]
[1771160805248,0.28800644,69443.0,69429.0,0.07201569]
[1771160805459,4e-05,69452.0,69414.0,0.02100958]
[1771160805668,0.07200655,69439.0,69430.0,0.36129563]
[1771160805879,4e-05,69452.0,69437.0,0.07200733]
[1771160805880,0.07199947,69445.0,69437.0,0.07200733]
[1771160806098,0.07199947,69445.0,69432.0,4e-05]
[1771160806099,4e-05,69452.0,69434.0,4e-05]
[1771160806320,4e-05,69452.0,69445.0,0.07199884]
[1771160806522,4e-05,69452.0,69443.0,0.07200122]
[1771160806523,0.07199334,69451.0,69443.0,0.07200122]
[1771160806729,4e-05,69452.0,69443.0,0.07200122]
[1771160806939,4e-05,69452.0,69448.0,0.07199625]
[1771160807144,4e-05,69452.0,69435.0,0.28928077]
[1771160807361,0.07198826,69456.0,69434.0,0.00016955]
[1771160807362,0.09569369,69463.0,69444.0,4e-05]
[1771160807585,0.07201541,69470.0,69457.0,0.07198698]
[1771160807796,0.0004,69465.0,69450.0,0.28928077]
[1771160808004,0.07237966,69465.0,69456.0,0.07198717]
[1771160808211,0.0004,69465.0,69456.0,0.07198717]
[1771160808423,0.0004,69465.0,69454.0,0.07198972]
[1771160808662,0.0004,69465.0,69445.0,0.28928077]
[1771160808886,0.07250861,69465.0,69457.0,0.07198671]
[1771160809099,0.07198006,69464.0,69446.0,0.28798525]
[1771160809307,0.00052969,69465.0,69457.0,0.07198595]
[1771160809509,0.07198071,69464.0,69455.0,0.07198868]
[1771160809716,0.07250851,69465.0,69457.0,0.07198684]
[1771160809986,0.00052969,69465.0,69457.0,0.07198684]
[1771160810243,0.00052969,69465.0,69458.0,0.07198571]
[1771160810453,0.00052969,69465.0,69451.0,0.28928077]
[1771160810663,0.07250842,69465.0,69457.0,0.07198683]
[1771160810873,0.00052969,69465.0,69457.0,0.07198683]
[1771160811087,0.00052969,69465.0,69458.0,0.07198594]
[1771160811324,0.00052969,69465.0,69462.0,0.07198157]
[1771160811543,0.00052969,69465.0,69409.0,0.17288809]
[1771160811544,4e-05,69470.0,69468.0,0.07197494]
[1771160811756,0.0004,69472.0,69471.0,0.07197247]
[1771160811967,0.0004,69475.0,69471.0,0.00012969]
[1771160812181,1e-08,69475.0,69471.0,0.07210169]
[1771160812396,1e-08,69475.0,69471.0,0.00012969]
[1771160813236,4e-05,69472.0,69464.0,0.07197918]
[1771160813440,4e-05,69472.0,69460.0,8e-05]
[1771160813441,0.00016964,69472.0,69460.0,8e-05]
[1771160813650,0.00016964,69472.0,69469.0,0.07197368]
[1771160814078,0.00016964,69472.0,69470.0,0.07197298]
[1771160814270,0.00016964,69472.0,69468.0,0.07197493]
[1771160814478,0.00016964,69472.0,69469.0,0.07197371]
[1771160814690,4e-05,69474.0,69470.0,0.07197319]
[1771160814902,0.0004,69477.0,69460.0,0.28801135]
[1771160814903,0.0004,69477.0,69472.0,0.07197144]
[1771160815106,0.0004,69477.0,69474.0,0.07196851]
[1771160815524,0.0004,69477.0,69475.0,0.07196826]
[1771160815736,0.0004,69477.0,69472.0,0.00012964]
[1771160816364,0.0004,69477.0,69472.0,0.07210103]
[1771160816589,0.0004,69477.0,69472.0,0.00012964]
[1771160817417,0.0004,69477.0,69473.0,0.0719704]
[1771160817645,8e-05,69480.0,69472.0,0.28801529]
[1771160817867,8e-05,69480.0,69475.0,0.07196797]
[1771160818079,0.00044,69482.0,69481.0,0.07196211]
[1771160818286,0.00044,69482.0,69472.0,0.00012964]
[1771160818287,4e-05,69488.0,69482.0,0.28784167]
[1771160818500,4e-05,69500.0,69488.0,0.28928077]
[1771160818705,4e-05,69500.0,69494.0,0.07194796]
[1771160818911,4.5e-05,69497.0,69493.0,0.07194881]
[1771160819126,4.5e-05,69497.0,69492.0,0.07195006]
[1771160819127,0.09564616,69509.0,69500.0,0.07194144]
[1771160819338,4e-05,69510.0,69504.0,0.07193746]
[1771160819551,4e-05,69510.0,69497.0,0.28928077]
[1771160819765,0.02371207,69518.0,69500.0,4e-05]
[1771160819973,0.00012,69523.0,69501.0,0.28928077]
[1771160820185,0.00012,69523.0,69514.0,0.07192694]
[1771160820411,0.00012,69523.0,69501.0,0.00043248]
[1771160820642,4e-05,69530.0,69515.0,0.28928077]
[1771160820855,0.07195149,69530.0,69520.0,0.07192083]
[1771160821061,0.07195145,69530.0,69521.0,0.0719197]
[1771160821278,0.0719156,69526.0,69517.0,0.07192481]
[1771160821499,0.0719156,69526.0,69515.0,0.28928077]
[1771160821500,0.07191546,69527.0,69518.0,0.07192291]
[1771160821724,0.07191546,69527.0,69519.0,0.07192254]
[1771160821924,0.07191546,69527.0,69510.0,4e-05]
[1771160821925,4e-05,69530.0,69511.0,0.28928077]
[1771160822139,4e-05,69530.0,69518.0,0.07192381]
[1771160822356,0.0003378,69536.0,69533.0,0.0719083]
[1771160822565,0.0003378,69536.0,69530.0,0.07191127]
[1771160822773,0.0003378,69536.0,69524.0,0.28928077]
[1771160823045,0.0003378,69536.0,69533.0,0.0719083]
[1771160823254,0.07189876,69543.0,69531.0,0.07190939]
[1771160823255,0.0718982,69543.0,69531.0,0.28928077]
[1771160823460,4e-05,69560.0,69530.0,4e-05]
[1771160823461,0.02375207,69550.0,69538.0,0.07190274]
[1771160823666,4e-05,69550.0,69530.0,4e-05]
[1771160823923,0.2953445,69550.0,69534.0,0.07190726]
[1771160824129,0.07189686,69545.0,69536.0,0.07190516]
[1771160824351,0.2953445,69550.0,69530.0,0.00016956]
[1771160824352,4e-05,69550.0,69530.0,0.00016956]
[1771160824561,4e-05,69550.0,69531.0,0.28928077]
[1771160824768,0.07189796,69543.0,69530.0,0.00016956]
[1771160824971,4e-05,69550.0,69530.0,0.00016956]
[1771160825215,0.07189435,69547.0,69537.0,0.07190231]
[1771160825419,0.07189435,69547.0,69530.0,0.00016956]
[1771160825420,0.07189983,69542.0,69533.0,0.0719081]
[1771160825656,0.07189829,69543.0,69530.0,0.00016956]
[1771160825863,0.2953045,69547.0,69530.0,0.00016956]
[1771160826068,0.07189967,69542.0,69530.0,0.00016956]
[1771160826274,0.28758662,69545.0,69503.0,0.28928077]
[1771160826275,0.07190209,69539.0,69503.0,0.28928077]
[1771160826491,0.07190517,69537.0,69528.0,0.07191329]
[1771160826695,0.00012949,69539.0,69535.0,0.07190575]
[1771160827106,0.00012949,69539.0,69526.0,0.28928077]
[1771160827107,0.00012949,69539.0,69538.0,0.07190313]
[1771160827317,0.28756123,69551.0,69489.0,0.0384]
[1771160827318,0.02371207,69563.0,69530.0,4e-05]
[1771160827531,0.07189498,69546.0,69537.0,0.07190349]
[1771160827756,0.07189445,69547.0,69530.0,0.28781192]
[1771160827954,0.02371207,69549.0,69530.0,0.07208066]
[1771160828175,0.02371207,69549.0,69495.0,0.02100958]
[1771160828176,0.07192129,69521.0,69495.0,0.02100958]
[1771160828385,0.07192129,69521.0,69484.0,0.33204893]
[1771160828386,0.07192539,69517.0,69509.0,0.07193292]
[1771160828596,0.27159243,69521.0,69497.0,0.28928077]
[1771160828803,0.07192174,69520.0,69497.0,0.28928077]
[1771160829045,4e-05,69532.0,69496.0,0.60576141]
[1771160829046,0.0719206,69522.0,69512.0,0.0719298]
[1771160829253,0.58297727,69524.0,69505.0,0.28928077]
[1771160829254,0.02371207,69524.0,69505.0,0.28928077]
[1771160829493,0.27163243,69532.0,69497.0,0.28928077]
[1771160829711,0.07195026,69532.0,69496.0,0.27371248]
[1771160829931,1e-08,69538.0,69525.0,0.28928077]
[1771160830141,1e-08,69538.0,69526.0,4e-05]
[1771160830383,1e-08,69538.0,69535.0,0.07190521]
[1771160830597,1e-08,69538.0,69536.0,0.07190497]
[1771160830805,1e-08,69538.0,69526.0,4e-05]
[1771160830806,1e-08,69538.0,69503.0,0.07193879]
[1771160830807,4e-05,69532.0,69503.0,0.07193879]
[1771160831015,0.02371207,69519.0,69505.0,0.0719371]
[1771160831223,0.07192727,69515.0,69503.0,0.00043248]
[1771160831430,0.07192363,69519.0,69503.0,0.00043248]
[1771160831650,0.02371207,69521.0,69503.0,0.00043248]
[1771160831848,0.07192931,69513.0,69503.0,0.00043248]
[1771160832088,0.07192995,69514.0,69504.0,0.0719382]
[1771160832296,0.07192995,69514.0,69487.0,0.02100958]
[1771160832297,0.27159243,69519.0,69495.0,0.07194675]
[1771160832500,0.07192692,69515.0,69500.0,0.07194159]
[1771160832704,0.07193346,69509.0,69500.0,0.07194159]
[1771160832951,0.07192899,69513.0,69498.0,0.07194433]
[1771160833158,0.07193541,69507.0,69497.0,0.000155]
[1771160833378,0.28102998,69512.0,69497.0,0.000155]
[1771160833597,0.07193619,69507.0,69498.0,0.0719445]
[1771160833812,0.0719352,69507.0,69499.0,0.07194326]
[1771160834034,0.28773189,69510.0,69497.0,0.000155]
[1771160834271,0.07193804,69505.0,69497.0,0.07210031]
[1771160834483,0.07193992,69503.0,69497.0,0.000155]
[1771160834692,0.07193782,69505.0,69497.0,0.000155]
[1771160834895,0.07193868,69504.0,69497.0,0.000155]
[1771160835305,0.07193733,69505.0,69497.0,0.000155]
[1771160836367,0.07193187,69511.0,69498.0,0.28027754]
[1771160836577,0.28771064,69515.0,69501.0,0.0719407]
[1771160836822,0.02397155,69518.0,69498.0,0.28027754]
[1771160837031,0.02397155,69518.0,69497.0,0.000155]
[1771160837032,0.07192846,69514.0,69504.0,0.07193759]
[1771160837493,0.28770123,69517.0,69500.0,0.07194159]
[1771160837700,0.07192823,69514.0,69502.0,0.28775977]
[1771160837907,0.07192823,69514.0,69506.0,0.07193598]
[1771160838521,0.07192823,69514.0,69504.0,0.07193795]
[1771160838522,0.07192823,69514.0,69504.0,0.07193769]
[1771160838737,0.28102998,69518.0,69497.0,0.07209981]
[1771160838949,0.07193852,69504.0,69497.0,0.000155]
[1771160839160,0.07193313,69510.0,69497.0,0.000155]
[1771160839453,0.07193913,69504.0,69497.0,0.000155]
[1771160840040,0.07193753,69505.0,69497.0,0.07210032]
[1771160840562,0.07193827,69505.0,69497.0,0.07209982]
[1771160840732,0.02397155,69509.0,69499.0,0.07194246]
[1771160840942,0.07193537,69507.0,69499.0,0.07194246]
[1771160841317,0.07193451,69508.0,69501.0,0.07194137]
[1771160841519,0.02805863,69500.0,69497.0,0.000155]
[1771160841724,0.07193451,69508.0,69500.0,0.07194216]
[1771160841924,0.07193528,69507.0,69500.0,0.07194216]
[1771160842158,0.07193528,69507.0,69499.0,0.0719432]
[1771160842496,0.03545176,69560.0,69507.0,0.07193474]
[1771160842497,0.28766581,69526.0,69507.0,0.07193474]
[1771160842714,0.07192904,69513.0,69506.0,0.07193552]
[1771160842918,0.02440342,69519.0,69497.0,0.0002]
[1771160842919,0.02397155,69512.0,69497.0,0.0002]
[1771160843117,0.07193913,69504.0,69497.0,0.0002]
[1771160843326,4e-05,69498.0,69497.0,0.00012]
[1771160843509,4e-05,69498.0,69494.0,0.000155]
[1771160843945,4e-05,69498.0,69491.0,0.000155]
[1771160844179,8e-05,69500.0,69496.0,0.07194568]
[1771160844555,8e-05,69500.0,69496.0,0.00012966]
[1771160844775,8e-05,69500.0,69499.0,0.07194348]
[1771160844980,4e-05,69504.0,69501.0,0.07194141]
[1771160845190,4e-05,69506.0,69501.0,0.07194062]
[1771160845415,4e-05,69506.0,69496.0,0.2804072]
[1771160845416,0.02397155,69528.0,69504.0,0.000195]
[1771160845627,0.02397155,69528.0,69505.0,0.07193727]
[1771160845835,0.2877276,69520.0,69504.0,0.28794451]
[1771160846041,4e-05,69520.0,69509.0,0.07193275]
[1771160846248,4e-05,69520.0,69509.0,0.07193313]
[1771160846660,4e-05,69520.0,69513.0,0.07192848]
[1771160846866,4e-05,69520.0,69508.0,0.000155]
[1771160847074,0.07192474,69518.0,69511.0,0.07193039]
[1771160847274,0.07192301,69519.0,69512.0,0.0719299]
[1771160847479,4e-05,69520.0,69513.0,0.07192865]
[1771160847687,4e-05,69520.0,69511.0,0.07193106]
[1771160847891,4e-05,69520.0,69519.0,0.07192278]
[1771160848101,0.07191576,69526.0,69517.0,0.07192466]
[1771160848310,0.0719176,69525.0,69514.0,0.28771058]